[Event "Early-Titled-Tuesday-Blitz-April-23-2024"]
[Site "Chess.com"]
[Date "2024.04.23"]
[Round "9"]
[White "Djager97"]
[Black "ChadBiryani"]
[Result "0-1"]
[WhiteElo "2534"]
[BlackElo "2454"]
[TimeControl "180+1"]
[EndTime "9:49:11 PDT"]
[Termination "ChadBiryani won by resignation"]

1. e4 {[%clk 0:03:00.9]} 1... d6 {[%clk 0:02:59]} 2. d4 {[%clk 0:02:58.4]} 2...
Nf6 {[%clk 0:02:59.3]} 3. Nc3 {[%clk 0:02:58.7]} 3... e5 {[%clk 0:02:59.6]} 4.
Nf3 {[%clk 0:02:57.8]} 4... Nbd7 {[%clk 0:02:58.3]} 5. a4 {[%clk 0:02:57.2]}
5... a5 {[%clk 0:02:56.5]} 6. Bc4 {[%clk 0:02:57.6]} 6... Be7 {[%clk 0:02:56]}
7. O-O {[%clk 0:02:57.5]} 7... O-O {[%clk 0:02:55.3]} 8. h3 {[%clk 0:02:56.4]}
8... h6 {[%clk 0:02:54.3]} 9. Be3 {[%clk 0:02:55.1]} 9... c6 {[%clk 0:02:54.3]}
10. Re1 {[%clk 0:02:52.9]} 10... Re8 {[%clk 0:02:54.1]} 11. Qd2 {[%clk
0:02:44.1]} 11... Bf8 {[%clk 0:02:51.4]} 12. Rad1 {[%clk 0:02:43.3]} 12... Qc7
{[%clk 0:02:48.8]} 13. Bb3 {[%clk 0:02:38.1]} 13... exd4 {[%clk 0:02:45.3]} 14.
Bxd4 {[%clk 0:02:34.1]} 14... Ne5 {[%clk 0:02:45.4]} 15. Nh4 {[%clk 0:02:21.6]}
15... Be6 {[%clk 0:02:40.7]} 16. Bxe6 {[%clk 0:02:19.2]} 16... Rxe6 {[%clk
0:02:37.8]} 17. Nf5 {[%clk 0:02:09.1]} 17... Nc4 {[%clk 0:02:19.2]} 18. Qf4
{[%clk 0:01:56.1]} 18... Nd7 {[%clk 0:02:13]} 19. Rd3 {[%clk 0:01:47]} 19...
Nce5 {[%clk 0:02:03.2]} 20. Rg3 {[%clk 0:01:45.6]} 20... Kh7 {[%clk 0:02:00.3]}
21. Qh4 {[%clk 0:01:09.3]} 21... Ng6 {[%clk 0:01:50.2]} 22. Qh5 {[%clk
0:01:07.3]} 22... Nde5 {[%clk 0:01:39.3]} 23. Ne2 {[%clk 0:00:58.7]} 23... Rae8
{[%clk 0:01:28.7]} 24. f4 {[%clk 0:00:54.7]} 24... c5 {[%clk 0:01:13.8]} 25. Bc3
{[%clk 0:00:52.8]} 25... Nc6 {[%clk 0:00:58.7]} 26. Bxg7 {[%clk 0:00:42.8]}
26... Bxg7 {[%clk 0:00:57.5]} 27. Nxg7 {[%clk 0:00:43.7]} 27... Kxg7 {[%clk
0:00:56.4]} 28. f5 {[%clk 0:00:44.2]} 28... Rf6 {[%clk 0:00:55.8]} 29. Nc3
{[%clk 0:00:39.2]} 29... Nb4 {[%clk 0:00:50]} 30. e5 {[%clk 0:00:26.6]} 30...
Rxe5 {[%clk 0:00:32]} 31. Rxe5 {[%clk 0:00:26.3]} 31... dxe5 {[%clk 0:00:32.6]}
32. Ne4 {[%clk 0:00:27]} 32... Rc6 {[%clk 0:00:28.6]} 33. fxg6 {[%clk
0:00:20.1]} 33... Rxg6 {[%clk 0:00:27.2]} 34. Rf3 {[%clk 0:00:13.6]} 34... Nd5
{[%clk 0:00:20.6]} 35. Ng3 {[%clk 0:00:08.5]} 35... Nf4 {[%clk 0:00:16.5]} 36.
Nf5+ {[%clk 0:00:07.7]} 36... Kh7 {[%clk 0:00:16.7]} 37. Rg3 {[%clk 0:00:06.4]}
37... Nxh5 {[%clk 0:00:16.1]} 0-1

[Event "Early-Titled-Tuesday-Blitz-April-23-2024"]
[Site "Chess.com"]
[Date "2024.04.23"]
[Round "9"]
[White "Attacker88"]
[Black "DonJuanEGenaro"]
[Result "1-0"]
[WhiteElo "2384"]
[BlackElo "2047"]
[TimeControl "180+1"]
[EndTime "9:49:13 PDT"]
[Termination "Attacker88 won on time"]

1. e4 {[%clk 0:02:59.9]} 1... c5 {[%clk 0:02:59.9]} 2. Nf3 {[%clk 0:02:58.6]}
2... Nc6 {[%clk 0:02:59.9]} 3. d4 {[%clk 0:02:59.2]} 3... cxd4 {[%clk
0:03:00.1]} 4. Nxd4 {[%clk 0:03:00.1]} 4... Nf6 {[%clk 0:02:59.8]} 5. Nc3 {[%clk
0:03:00.4]} 5... d6 {[%clk 0:03:00.1]} 6. Bg5 {[%clk 0:02:59.6]} 6... Qb6 {[%clk
0:02:59.1]} 7. Nb3 {[%clk 0:02:58.5]} 7... e6 {[%clk 0:02:59]} 8. Qd2 {[%clk
0:02:58.7]} 8... a6 {[%clk 0:02:59.2]} 9. O-O-O {[%clk 0:02:59.1]} 9... Bd7
{[%clk 0:02:59.2]} 10. f3 {[%clk 0:02:55]} 10... Qc7 {[%clk 0:02:56.7]} 11. g4
{[%clk 0:02:52.2]} 11... b5 {[%clk 0:02:46.6]} 12. Bxf6 {[%clk 0:02:48.4]} 12...
gxf6 {[%clk 0:02:45.6]} 13. f4 {[%clk 0:02:47.6]} 13... b4 {[%clk 0:02:35.2]}
14. Ne2 {[%clk 0:02:46.4]} 14... a5 {[%clk 0:02:35]} 15. Nbd4 {[%clk 0:02:20.4]}
15... Nxd4 {[%clk 0:02:21.6]} 16. Nxd4 {[%clk 0:02:20.8]} 16... Rb8 {[%clk
0:02:07.5]} 17. Kb1 {[%clk 0:02:07.4]} 17... h5 {[%clk 0:02:06.9]} 18. gxh5
{[%clk 0:01:58.3]} 18... Rxh5 {[%clk 0:02:01.3]} 19. f5 {[%clk 0:01:58.7]} 19...
Bh6 {[%clk 0:01:33.5]} 20. Qe2 {[%clk 0:01:55.1]} 20... Rh4 {[%clk 0:01:33]} 21.
Qf2 {[%clk 0:01:43.8]} 21... Rxe4 {[%clk 0:01:17.8]} 22. fxe6 {[%clk 0:01:42]}
22... Bxe6 {[%clk 0:00:52.7]} 23. Bg2 {[%clk 0:01:40.8]} 23... Rf4 {[%clk
0:00:49.3]} 24. Qg3 {[%clk 0:01:15.9]} 24... Rc8 {[%clk 0:00:21.5]} 25. Rhe1
{[%clk 0:00:36.1]} 25... Rxd4 {[%clk 0:00:16.5]} 26. Rxe6+ {[%clk 0:00:26.3]}
26... fxe6 {[%clk 0:00:14.8]} 27. Qg8+ {[%clk 0:00:19.4]} 27... Kd7 {[%clk
0:00:11.2]} 28. Qf7+ {[%clk 0:00:17.5]} 28... Kd8 {[%clk 0:00:07.8]} 29. Qxf6+
{[%clk 0:00:15.7]} 29... Ke8 {[%clk 0:00:05.7]} 30. Qxe6+ {[%clk 0:00:12.3]}
30... Kd8 {[%clk 0:00:02.3]} 31. Qf6+ {[%clk 0:00:11.6]} 31... Qe7 {[%clk
0:00:01.3]} 32. Qxd4 {[%clk 0:00:10.7]} 1-0

[Event "Early-Titled-Tuesday-Blitz-April-23-2024"]
[Site "Chess.com"]
[Date "2024.04.23"]
[Round "9"]
[White "Skatchkov_V"]
[Black "Slovineanu"]
[Result "1-0"]
[WhiteElo "2664"]
[BlackElo "2496"]
[TimeControl "180+1"]
[EndTime "9:49:14 PDT"]
[Termination "Skatchkov_V won by resignation"]

1. d4 {[%clk 0:03:00.9]} 1... Nf6 {[%clk 0:02:59.8]} 2. c4 {[%clk 0:03:00.7]}
2... e6 {[%clk 0:03:00]} 3. Nf3 {[%clk 0:03:00.7]} 3... d5 {[%clk 0:03:00.4]} 4.
g3 {[%clk 0:03:00.9]} 4... Be7 {[%clk 0:02:59.7]} 5. Bg2 {[%clk 0:03:01]} 5...
O-O {[%clk 0:03:00.2]} 6. Nc3 {[%clk 0:03:01.7]} 6... dxc4 {[%clk 0:02:52.9]} 7.
Ne5 {[%clk 0:03:00.4]} 7... Nc6 {[%clk 0:02:47.7]} 8. Bxc6 {[%clk 0:02:59.5]}
8... bxc6 {[%clk 0:02:47.5]} 9. Nxc6 {[%clk 0:03:00.4]} 9... Qe8 {[%clk
0:02:48.1]} 10. Nxe7+ {[%clk 0:03:01.3]} 10... Qxe7 {[%clk 0:02:48.7]} 11. Qa4
{[%clk 0:03:02.2]} 11... c5 {[%clk 0:02:43.5]} 12. dxc5 {[%clk 0:03:01.5]} 12...
Qxc5 {[%clk 0:02:40.5]} 13. Be3 {[%clk 0:03:01.9]} 13... Qh5 {[%clk 0:02:26.9]}
14. Qxc4 {[%clk 0:02:53.2]} 14... Bb7 {[%clk 0:02:16.9]} 15. f3 {[%clk
0:02:52.6]} 15... Bxf3 {[%clk 0:02:01.9]} 16. O-O {[%clk 0:02:25.2]} 16... Bb7
{[%clk 0:01:40]} 17. Qh4 {[%clk 0:02:17.6]} 17... Qxh4 {[%clk 0:01:33.8]} 18.
gxh4 {[%clk 0:02:18.5]} 18... Nd5 {[%clk 0:01:33.1]} 19. Nxd5 {[%clk 0:02:16.1]}
19... Bxd5 {[%clk 0:01:33.2]} 20. Bd4 {[%clk 0:02:16.6]} 20... f6 {[%clk
0:01:27.9]} 21. Rac1 {[%clk 0:02:15.9]} 21... a5 {[%clk 0:01:24.9]} 22. a3
{[%clk 0:02:11.2]} 22... a4 {[%clk 0:01:24.4]} 23. Rc7 {[%clk 0:02:09.9]} 23...
Rf7 {[%clk 0:01:23.2]} 24. Rfc1 {[%clk 0:02:07.7]} 24... Rxc7 {[%clk 0:01:21.4]}
25. Rxc7 {[%clk 0:02:08.6]} 25... h5 {[%clk 0:01:17]} 26. Kf2 {[%clk 0:02:07.6]}
26... Rd8 {[%clk 0:01:13.1]} 27. Bc3 {[%clk 0:02:06]} 27... Bb3 {[%clk
0:01:11.9]} 28. Ke3 {[%clk 0:02:02.2]} 28... Rd1 {[%clk 0:01:07.8]} 29. Rc8+
{[%clk 0:02:00.2]} 29... Kh7 {[%clk 0:01:05]} 30. Rc7 {[%clk 0:01:59.1]} 30...
Rh1 {[%clk 0:01:01.6]} 31. Bxf6 {[%clk 0:01:56]} 31... Rxh2 {[%clk 0:00:54]} 32.
Rxg7+ {[%clk 0:01:55.5]} 32... Kh6 {[%clk 0:00:54.2]} 33. Rd7 {[%clk 0:01:40.6]}
33... Bc4 {[%clk 0:00:50]} 34. Rd2 {[%clk 0:01:40.2]} 34... Kg6 {[%clk
0:00:49.1]} 35. Bg5 {[%clk 0:01:39.7]} 35... Kf5 {[%clk 0:00:48.7]} 36. Kf3
{[%clk 0:01:39.4]} 36... Bd5+ {[%clk 0:00:44.3]} 37. Kg3 {[%clk 0:01:34.8]}
37... Rg2+ {[%clk 0:00:43.2]} 38. Kh3 {[%clk 0:01:35]} 38... Rg4 {[%clk
0:00:43.3]} 39. Rc2 {[%clk 0:01:28.7]} 39... Bg2+ {[%clk 0:00:39.7]} 40. Kh2
{[%clk 0:01:28.6]} 40... Be4 {[%clk 0:00:39.8]} 41. Rc5+ {[%clk 0:01:27.4]}
41... e5 {[%clk 0:00:40]} 42. Kh3 {[%clk 0:01:13.5]} 42... Rg2 {[%clk
0:00:34.8]} 43. e3 {[%clk 0:01:12.9]} 43... Rxb2 {[%clk 0:00:33.8]} 44. Bf4
{[%clk 0:01:13.2]} 44... Rb3 {[%clk 0:00:28.6]} 45. Rxe5+ {[%clk 0:01:13.2]}
45... Kf6 {[%clk 0:00:25.5]} 46. Rxe4 {[%clk 0:01:14.1]} 46... Rxa3 {[%clk
0:00:24.7]} 47. Re8 {[%clk 0:01:12.1]} 47... Kf5 {[%clk 0:00:21.2]} 48. Kg3
{[%clk 0:01:10.6]} 48... Ra1 {[%clk 0:00:20.6]} 49. Re5+ {[%clk 0:01:09.2]}
49... Kf6 {[%clk 0:00:20.5]} 50. Rxh5 {[%clk 0:01:07.9]} 50... Kg6 {[%clk
0:00:18.6]} 51. Rg5+ {[%clk 0:01:08.1]} 51... Kh6 {[%clk 0:00:18.1]} 52. Ra5+
{[%clk 0:01:07.4]} 52... Kh7 {[%clk 0:00:18.1]} 53. Be5 {[%clk 0:01:03.8]} 53...
Re1 {[%clk 0:00:17.2]} 54. Bd4 {[%clk 0:01:02.8]} 54... Rg1+ {[%clk 0:00:16.9]}
55. Kh3 {[%clk 0:01:03.4]} 1-0

[Event "Early-Titled-Tuesday-Blitz-April-23-2024"]
[Site "Chess.com"]
[Date "2024.04.23"]
[Round "9"]
[White "sonicdravise"]
[Black "ccccvhhhj"]
[Result "1-0"]
[WhiteElo "2612"]
[BlackElo "2461"]
[TimeControl "180+1"]
[EndTime "9:49:16 PDT"]
[Termination "sonicdravise won on time"]

1. Nf3 {[%clk 0:03:00.9]} 1... e6 {[%clk 0:02:58]} 2. c4 {[%clk 0:02:55.3]} 2...
d5 {[%clk 0:02:58.4]} 3. e3 {[%clk 0:02:54.6]} 3... c6 {[%clk 0:02:57.4]} 4. b3
{[%clk 0:02:42]} 4... Nf6 {[%clk 0:02:53.1]} 5. Nc3 {[%clk 0:02:37.1]} 5... Be7
{[%clk 0:02:52.7]} 6. Bb2 {[%clk 0:02:36.2]} 6... O-O {[%clk 0:02:53.3]} 7. d4
{[%clk 0:02:35.8]} 7... b6 {[%clk 0:02:45.5]} 8. Bd3 {[%clk 0:02:33.8]} 8... Bb7
{[%clk 0:02:46.1]} 9. O-O {[%clk 0:02:33.2]} 9... Nbd7 {[%clk 0:02:44.9]} 10.
Qe2 {[%clk 0:02:32.9]} 10... c5 {[%clk 0:02:35.4]} 11. cxd5 {[%clk 0:02:26.6]}
11... exd5 {[%clk 0:02:33.6]} 12. Rac1 {[%clk 0:02:22.3]} 12... Rc8 {[%clk
0:02:30.3]} 13. Ba6 {[%clk 0:02:17.4]} 13... Qc7 {[%clk 0:02:11.6]} 14. Bxb7
{[%clk 0:02:16.2]} 14... Qxb7 {[%clk 0:02:12.2]} 15. dxc5 {[%clk 0:02:14.7]}
15... bxc5 {[%clk 0:02:09.8]} 16. Rfd1 {[%clk 0:02:14.3]} 16... Rfd8 {[%clk
0:02:01.6]} 17. Na4 {[%clk 0:01:59.9]} 17... h6 {[%clk 0:01:18.9]} 18. Ne5
{[%clk 0:01:55.5]} 18... Nxe5 {[%clk 0:01:06.5]} 19. Bxe5 {[%clk 0:01:56.4]}
19... c4 {[%clk 0:00:19]} 20. Rb1 {[%clk 0:01:24.7]} 20... cxb3 {[%clk 0:00:18]}
21. Rxb3 {[%clk 0:01:11.7]} 21... Qd7 {[%clk 0:00:18.7]} 22. Nc3 {[%clk
0:01:08.3]} 22... Qe6 {[%clk 0:00:19.1]} 23. Bd4 {[%clk 0:01:05.7]} 23... Ne4
{[%clk 0:00:17.1]} 24. h3 {[%clk 0:00:44.4]} 24... Bf6 {[%clk 0:00:10.8]} 25.
Bxf6 {[%clk 0:00:40.1]} 25... Nxf6 {[%clk 0:00:11]} 26. Qd3 {[%clk 0:00:35]}
26... a5 {[%clk 0:00:08.9]} 27. Rb5 {[%clk 0:00:32.5]} 27... Ra8 {[%clk
0:00:08.1]} 28. Nxd5 {[%clk 0:00:27.9]} 28... Nxd5 {[%clk 0:00:09]} 29. Rxd5
{[%clk 0:00:27.6]} 29... Re8 {[%clk 0:00:06.9]} 30. a4 {[%clk 0:00:25.9]} 30...
Rac8 {[%clk 0:00:05.7]} 31. Qd2 {[%clk 0:00:25.5]} 31... Rc4 {[%clk 0:00:03.5]}
32. Qxa5 {[%clk 0:00:24]} 32... Rc2 {[%clk 0:00:03.1]} 33. R5d2 {[%clk
0:00:24.2]} 33... Rxd2 {[%clk 0:00:03.2]} 34. Rxd2 {[%clk 0:00:22.1]} 34... Qb3
{[%clk 0:00:03.2]} 35. Rd8 {[%clk 0:00:19]} 1-0

[Event "Early-Titled-Tuesday-Blitz-April-23-2024"]
[Site "Chess.com"]
[Date "2024.04.23"]
[Round "9"]
[White "campochess"]
[Black "StelaSfw"]
[Result "1-0"]
[WhiteElo "2150"]
[BlackElo "1652"]
[TimeControl "180+1"]
[EndTime "9:49:16 PDT"]
[Termination "campochess won by resignation"]

1. Nf3 {[%clk 0:02:59.1]} 1... Nf6 {[%clk 0:02:58.8]} 2. b3 {[%clk 0:02:58.8]}
2... g6 {[%clk 0:02:59.1]} 3. Bb2 {[%clk 0:02:58.7]} 3... Bg7 {[%clk 0:02:59.6]}
4. c4 {[%clk 0:02:58.8]} 4... O-O {[%clk 0:02:59.8]} 5. g3 {[%clk 0:02:58.9]}
5... c5 {[%clk 0:03:00.4]} 6. Bg2 {[%clk 0:02:58.8]} 6... d6 {[%clk 0:03:00.9]}
7. O-O {[%clk 0:02:58.3]} 7... Nc6 {[%clk 0:03:01.6]} 8. d3 {[%clk 0:02:58.4]}
8... Bg4 {[%clk 0:03:01.5]} 9. Nbd2 {[%clk 0:02:58.1]} 9... a6 {[%clk 0:03:01]}
10. h3 {[%clk 0:02:57.1]} 10... Bf5 {[%clk 0:03:00.3]} 11. e4 {[%clk 0:02:55.2]}
11... Be6 {[%clk 0:02:59.7]} 12. Re1 {[%clk 0:02:53.6]} 12... b5 {[%clk
0:02:59.4]} 13. Nf1 {[%clk 0:02:52.7]} 13... Qc7 {[%clk 0:02:44.9]} 14. Ne3
{[%clk 0:02:52]} 14... Nd4 {[%clk 0:02:42.7]} 15. Bxd4 {[%clk 0:02:47.9]} 15...
cxd4 {[%clk 0:02:42.8]} 16. Nc2 {[%clk 0:02:39.6]} 16... bxc4 {[%clk 0:02:39.3]}
17. bxc4 {[%clk 0:02:37.7]} 17... Nd7 {[%clk 0:02:12.1]} 18. Ncxd4 {[%clk
0:02:34.7]} 18... Qc5 {[%clk 0:01:55.1]} 19. Nxe6 {[%clk 0:02:34.1]} 19... fxe6
{[%clk 0:01:56]} 20. Rb1 {[%clk 0:02:33]} 20... Ne5 {[%clk 0:01:36.7]} 21. d4
{[%clk 0:02:23.2]} 21... Nxf3+ {[%clk 0:01:32.5]} 22. Bxf3 {[%clk 0:02:18.8]}
22... Bxd4 {[%clk 0:01:28.3]} 23. Rf1 {[%clk 0:02:11]} 23... Qxc4 {[%clk
0:01:25.7]} 24. Rb7 {[%clk 0:02:05.6]} 24... Rae8 {[%clk 0:01:22.5]} 25. Qb1
{[%clk 0:01:52.1]} 25... e5 {[%clk 0:01:17.9]} 26. Kg2 {[%clk 0:01:36.6]} 26...
Qc3 {[%clk 0:01:11.6]} 27. Qb3+ {[%clk 0:01:32]} 27... Qxb3 {[%clk 0:00:49.6]}
28. Rxb3 {[%clk 0:01:30.2]} 28... a5 {[%clk 0:00:49.1]} 29. Bg4 {[%clk
0:01:27.1]} 29... Ra8 {[%clk 0:00:48.5]} 30. Be6+ {[%clk 0:01:23.2]} 30... Kg7
{[%clk 0:00:47.6]} 31. Bd5 {[%clk 0:01:15.9]} 31... Ra7 {[%clk 0:00:46.2]} 32.
f4 {[%clk 0:01:11.3]} 32... a4 {[%clk 0:00:46.2]} 33. Rd3 {[%clk 0:01:09.8]}
33... Ra5 {[%clk 0:00:37.6]} 34. Rb1 {[%clk 0:00:58.9]} 34... exf4 {[%clk
0:00:37.1]} 35. Rxd4 {[%clk 0:00:57.9]} 35... f3+ {[%clk 0:00:37.2]} 36. Kf2
{[%clk 0:00:57.9]} 36... Rc5 {[%clk 0:00:36.1]} 37. Rb2 {[%clk 0:00:54.5]} 37...
Rc3 {[%clk 0:00:35.5]} 38. Rxa4 {[%clk 0:00:52.2]} 38... Kf6 {[%clk 0:00:33]}
39. Rc4 {[%clk 0:00:51.7]} 39... Ra3 {[%clk 0:00:30.4]} 40. Rc7 {[%clk
0:00:42.8]} 40... e6 {[%clk 0:00:31.3]} 41. Bb3 {[%clk 0:00:40.8]} 41... Ke5
{[%clk 0:00:31.6]} 42. Rxh7 {[%clk 0:00:36.4]} 42... Kxe4 {[%clk 0:00:31.8]} 43.
Rc2 {[%clk 0:00:32.9]} 43... Rf6 {[%clk 0:00:30.7]} 44. Rc4+ {[%clk 0:00:32.5]}
44... Kd5 {[%clk 0:00:30.3]} 45. Ra4+ {[%clk 0:00:30.5]} 45... Kc5 {[%clk
0:00:31.2]} 46. Rxa3 {[%clk 0:00:30.2]} 46... d5 {[%clk 0:00:31.8]} 47. Raa7
{[%clk 0:00:28.1]} 47... Kb4 {[%clk 0:00:32.7]} 48. Raf7 {[%clk 0:00:27.4]}
48... Rxf7 {[%clk 0:00:32.2]} 49. Rxf7 {[%clk 0:00:26.7]} 49... Ka3 {[%clk
0:00:33.1]} 50. Kxf3 {[%clk 0:00:26.6]} 1-0

[Event "Early-Titled-Tuesday-Blitz-April-23-2024"]
[Site "Chess.com"]
[Date "2024.04.23"]
[Round "9"]
[White "Arteler"]
[Black "LamaChampetre"]
[Result "0-1"]
[WhiteElo "2321"]
[BlackElo "2255"]
[TimeControl "180+1"]
[EndTime "9:49:17 PDT"]
[Termination "LamaChampetre won by checkmate"]

1. e4 {[%clk 0:03:00.9]} 1... c5 {[%clk 0:02:53.5]} 2. Nf3 {[%clk 0:03:00.4]}
2... g6 {[%clk 0:02:52.9]} 3. d4 {[%clk 0:03:00.5]} 3... cxd4 {[%clk 0:02:53.8]}
4. Nxd4 {[%clk 0:03:01.3]} 4... Nc6 {[%clk 0:02:53.6]} 5. Nc3 {[%clk 0:03:01.3]}
5... Bg7 {[%clk 0:02:52.4]} 6. Be3 {[%clk 0:03:01.9]} 6... Nf6 {[%clk
0:02:52.7]} 7. Bc4 {[%clk 0:02:32.6]} 7... O-O {[%clk 0:02:51.5]} 8. Bb3 {[%clk
0:02:30.2]} 8... Re8 {[%clk 0:02:36.4]} 9. f3 {[%clk 0:02:24.4]} 9... e6 {[%clk
0:02:33.5]} 10. Qd2 {[%clk 0:02:20.4]} 10... d5 {[%clk 0:02:32.8]} 11. exd5
{[%clk 0:02:01.3]} 11... Nxd5 {[%clk 0:02:30.9]} 12. Nxd5 {[%clk 0:01:57.7]}
12... exd5 {[%clk 0:02:23.9]} 13. O-O-O {[%clk 0:01:57.1]} 13... Bd7 {[%clk
0:01:50.9]} 14. Bxd5 {[%clk 0:01:36.8]} 14... Qh4 {[%clk 0:01:41.1]} 15. Nxc6
{[%clk 0:01:20.3]} 15... Bxc6 {[%clk 0:01:13.6]} 16. Bxc6 {[%clk 0:01:08.5]}
16... Rxe3 {[%clk 0:01:06.7]} 17. Kb1 {[%clk 0:00:53.7]} 17... Bh6 {[%clk
0:00:42.8]} 18. Bd5 {[%clk 0:00:33.8]} 18... Rae8 {[%clk 0:00:28.7]} 19. g3
{[%clk 0:00:24.7]} 19... Qf6 {[%clk 0:00:27.2]} 20. f4 {[%clk 0:00:22.9]} 20...
Bg7 {[%clk 0:00:26.1]} 21. c3 {[%clk 0:00:17.7]} 21... Re2 {[%clk 0:00:25.1]}
22. Qd3 {[%clk 0:00:16.1]} 22... R8e3 {[%clk 0:00:22.9]} 23. Qc4 {[%clk
0:00:12.9]} 23... Qf5+ {[%clk 0:00:22.7]} 24. Ka1 {[%clk 0:00:10.4]} 24... Qc2
{[%clk 0:00:21.3]} 25. Qb3 {[%clk 0:00:07.5]} 25... Qf5 {[%clk 0:00:17.7]} 26.
a3 {[%clk 0:00:05.1]} 26... b6 {[%clk 0:00:16.9]} 27. Bc4 {[%clk 0:00:05.6]}
27... h5 {[%clk 0:00:15.7]} 28. Bxe2 {[%clk 0:00:05.4]} 28... Rxe2 {[%clk
0:00:15.8]} 29. Rhe1 {[%clk 0:00:06.2]} 29... Rxh2 {[%clk 0:00:14.8]} 30. Re8+
{[%clk 0:00:06]} 30... Kh7 {[%clk 0:00:14.7]} 31. Re7 {[%clk 0:00:06.6]} 31...
Kg8 {[%clk 0:00:13.7]} 32. Rd8+ {[%clk 0:00:05]} 32... Bf8 {[%clk 0:00:08.2]}
33. Ree8 {[%clk 0:00:03.4]} 33... Rh1+ {[%clk 0:00:08.5]} 34. Ka2 {[%clk
0:00:04.1]} 34... Qb1# {[%clk 0:00:08.4]} 0-1

[Event "Early-Titled-Tuesday-Blitz-April-23-2024"]
[Site "Chess.com"]
[Date "2024.04.23"]
[Round "9"]
[White "MagnusCarlsen"]
[Black "Oleksandr_Bortnyk"]
[Result "1-0"]
[WhiteElo "3231"]
[BlackElo "3122"]
[TimeControl "180+1"]
[EndTime "9:49:23 PDT"]
[Termination "MagnusCarlsen won by resignation"]

1. d4 {[%clk 0:03:00.9]} 1... Nf6 {[%clk 0:02:57.2]} 2. c4 {[%clk 0:02:50.5]}
2... b6 {[%clk 0:02:56.4]} 3. Nf3 {[%clk 0:02:50.7]} 3... Bb7 {[%clk 0:02:56.9]}
4. g3 {[%clk 0:02:51.3]} 4... g6 {[%clk 0:02:57.6]} 5. Bg2 {[%clk 0:02:51.9]}
5... Bg7 {[%clk 0:02:58.3]} 6. O-O {[%clk 0:02:52.5]} 6... O-O {[%clk
0:02:58.5]} 7. h4 {[%clk 0:02:53]} 7... d6 {[%clk 0:02:34.4]} 8. Nc3 {[%clk
0:02:36]} 8... Ne4 {[%clk 0:02:34.1]} 9. h5 {[%clk 0:02:36]} 9... Nxc3 {[%clk
0:02:31.5]} 10. bxc3 {[%clk 0:02:36.9]} 10... Nc6 {[%clk 0:02:27.6]} 11. h6
{[%clk 0:02:36.8]} 11... Bh8 {[%clk 0:02:28]} 12. e4 {[%clk 0:02:36.4]} 12...
Na5 {[%clk 0:02:28]} 13. Re1 {[%clk 0:02:34.5]} 13... Nxc4 {[%clk 0:02:25.4]}
14. a4 {[%clk 0:02:33.3]} 14... c5 {[%clk 0:02:24.4]} 15. Qe2 {[%clk 0:02:25.8]}
15... Na5 {[%clk 0:02:23.9]} 16. Rb1 {[%clk 0:02:25.8]} 16... cxd4 {[%clk
0:02:21.9]} 17. cxd4 {[%clk 0:02:26]} 17... Rc8 {[%clk 0:02:21.8]} 18. Bf4
{[%clk 0:02:24.6]} 18... Qd7 {[%clk 0:02:18.5]} 19. e5 {[%clk 0:02:20.8]} 19...
Bxf3 {[%clk 0:02:07.7]} 20. Bxf3 {[%clk 0:02:19.1]} 20... dxe5 {[%clk
0:01:47.1]} 21. Bxe5 {[%clk 0:02:16.8]} 21... Nc4 {[%clk 0:01:18.9]} 22. Bxh8
{[%clk 0:01:53.8]} 22... Kxh8 {[%clk 0:01:19.8]} 23. Rbc1 {[%clk 0:01:29.9]}
23... Nd6 {[%clk 0:00:58.6]} 24. Bg4 {[%clk 0:01:28]} 24... e6 {[%clk
0:00:42.5]} 25. d5 {[%clk 0:01:16.9]} 25... Rxc1 {[%clk 0:00:32.1]} 26. Rxc1
{[%clk 0:01:17.8]} 26... Nf5 {[%clk 0:00:21.9]} 27. Qe5+ {[%clk 0:00:43]} 27...
f6 {[%clk 0:00:20.7]} 28. Qxe6 {[%clk 0:00:43.5]} 28... Qxe6 {[%clk 0:00:13]}
29. dxe6 {[%clk 0:00:44.4]} 29... Ne7 {[%clk 0:00:05.9]} 30. Rc7 {[%clk
0:00:43.9]} 30... Re8 {[%clk 0:00:03.8]} 31. Rxa7 {[%clk 0:00:44]} 31... Kg8
{[%clk 0:00:03.7]} 32. Be2 {[%clk 0:00:40.4]} 32... Kf8 {[%clk 0:00:04.2]} 33.
Rb7 {[%clk 0:00:38]} 33... Nd5 {[%clk 0:00:02.3]} 34. Bc4 {[%clk 0:00:34]} 34...
Ne7 {[%clk 0:00:01.4]} 35. Rxb6 {[%clk 0:00:34.4]} 35... Rc8 {[%clk 0:00:01.8]}
36. Bb5 {[%clk 0:00:33.3]} 36... Nf5 {[%clk 0:00:02]} 37. Rb7 {[%clk 0:00:32.9]}
37... Rc1+ {[%clk 0:00:01.8]} 38. Kg2 {[%clk 0:00:33]} 38... Re1 {[%clk
0:00:01.7]} 39. a5 {[%clk 0:00:31]} 39... Nd6 {[%clk 0:00:01.3]} 40. a6 {[%clk
0:00:30.2]} 40... Ra1 {[%clk 0:00:01.4]} 41. Rxh7 {[%clk 0:00:22.1]} 41... Nxb5
{[%clk 0:00:01.6]} 42. Rh8+ {[%clk 0:00:21.8]} 42... Ke7 {[%clk 0:00:02.1]} 43.
h7 {[%clk 0:00:22.7]} 43... Nc7 {[%clk 0:00:01.5]} 44. Rc8 {[%clk 0:00:21.8]}
44... Nxe6 {[%clk 0:00:01.7]} 45. h8=Q {[%clk 0:00:22.2]} 1-0